Cogmind - Beta 13 @@@ ROGUE MODE // 2024.04.01 @ 00:23:15 Player: ebo Result: Destroyed by G-47 Trooper with Particle Gun Performance ------------- Evolutions (2) 1000 Regions Visited (4) 800 Robots Destroyed (39) 195 Value Destroyed (1114) 1114 Prototype IDs (3) 60 Alien Tech Used (0) 0 Bonus (11) 11 TOTAL SCORE: 3180 Bonus ------- High Alert Combat Kills 11 Cogmind --------- Core Integrity 0/550 Matter 300/300 Energy 100/100 System Corruption 0% Temperature Cool (9) Movement Core (50) Location -8/Storage Parts ------- > --- POWER (3) -------- (None) > --- PROPULSION (3) --- (None) > --- UTILITY (3) ------ (None) > --- WEAPON (2) ------- (None) > --- INVENTORY (5) ---- (None) Peak State ------------ > --- POWER ------------ Improved Ion Engine Heavy Ion Engine > --- PROPULSION ------- Carbon-fiber Leg Carbon-fiber Leg Improved VTOL Module > --- UTILITY ---------- Heat Sink Large Matter Pod Trap Scanner > --- WEAPON ----------- Improved EM Shotgun Improved Light Cannon > --- INVENTORY -------- Advanced Treads Improved EM Shotgun Ion Cannon Heavy Assault Rifle High-powered Shotgun [Rating: 26] Favorites ----------- Power Heavy Ion Engine Engine Heavy Ion Engine Power Core Nuclear Core Propulsion Aluminum Leg Treads Advanced Treads Leg Aluminum Leg Wheel Compact Wheel Flight Unit Cesium-ion Thruster Utility Heat Sink Device Heat Sink Storage Large Matter Pod Protection Medium Armor Plating Weapon Improved EM Shotgun Energy Gun Improved EM Shotgun Energy Cannon Ion Cannon Ballistic Gun High-powered Shotgun Ballistic Cannon Improved Light Cannon Launcher Rocket Launcher Build | -11 -10 -9 -8 -8 ------- Run | Yrd Mat Mat Mat Sto Slots Evolved 4 | . . 2 2 . Power 2 | . . 1 1 . Propulsion 1 | . . 1 . . Utility 1 | . . . 1 . Weapon . | . . . . . Parts Attached 53 | 6 1 27 18 1 Power 10 | 1 1 7 1 . Engine 5 | 1 . 3 1 . Core 5 | . 1 4 . . Reactor . | . . . . . Propulsion 18 | 2 . 6 10 . Treads 3 | . . . 3 . Leg 7 | 2 . 2 3 . Wheel 1 | . . 1 . . Hover . | . . . . . Flight 7 | . . 3 4 . Utility 10 | 1 . 6 2 1 Device 6 | 1 . 3 2 . Storage 3 | . . 2 . 1 Processor . | . . . . . Hackware . | . . . . . Protection 1 | . . 1 . . Artifact . | . . . . . Weapon 15 | 2 . 8 5 . Energy Gun 9 | 2 . 5 2 . Energy Cannon 1 | . . . 1 . Ballistic Gun 2 | . . . 2 . Ballistic Cannon 1 | . . 1 . . Launcher 2 | . . 2 . . Special Weapon . | . . . . . Impact Weapon . | . . . . . Slashing Weapon . | . . . . . Piercing Weapon . | . . . . . Special Melee Weapon . | . . . . . Unidentified Prototypes 3 | . . 2 1 . Parts Lost 30 | . . 13 15 2 Power 6 | . . 3 3 . Propulsion 7 | . . 3 4 . Utility 6 | . . 2 2 2 Weapon 11 | . . 5 6 . Highest Loss Streak 13 | . . 8 13 2 To Critical Strikes . | . . . . . Average Slot Usage (%) 73 | . 85 69 77 13 Engine 11 | . 5 11 16 . Core 3 | . 8 4 . . Treads 2 | . . . 5 . Leg 9 | . 28 1 11 . Flight 6 | . . 11 4 . Device 12 | . 14 12 13 . Storage 6 | . . 6 9 13 Energy Gun 14 | . 28 14 8 . Ballistic Cannon 5 | . . 5 8 . Naked Turns 11 | . . . . 11 Heaviest Build 29 | 7 9 26 29 4 Greatest Support 30 | 20 20 30 30 3 Greatest Overweight (x) 9 | . . 8 9 1 Average Overweight (x) . | . . 1 . . Largest Inventory Capacity 5 | 5 5 5 5 5 Average Capacity 5 | 5 5 5 5 5 Most Carried 5 | 3 5 5 5 . Average Carried 3 | . 3 3 4 . Final Capacity 5 | 5 5 5 5 5 Final Carried 4 | 1 4 4 1 . Class Distribution -------------------- 86% | Mutant 8% | Sprinter 5% | Scavenger-Mutant Dominant Class ---------------- Mutant | -10/Materials Mutant | -9/Materials Mutant | -8/Materials Mutant | -8/Storage Resources | -11 -10 -9 -8 -8 ----------- Run | Yrd Mat Mat Mat Sto Matter Collected 806 | 175 90 359 182 . Remotely . | . . . . . Salvage Created 1303 | 48 90 791 374 . Parts 75 | 4 6 49 16 . Haulers Intercepted 2 | . . 2 . . Recyclers Shooed 4 | . 1 1 2 . Parts Field Recycled . | . . . . . Retrieved Matter . | . . . . . Parts Self-Destructed . | . . . . . Prevented . | . . . . . Kills | -11 -10 -9 -8 -8 ------- Run | Yrd Mat Mat Mat Sto Combat Hostiles Destroyed 28 | 1 2 14 11 . Guns 16 | 1 2 8 5 . Cannons 5 | . . . 5 . AOE 7 | . . 6 1 . Classes Destroyed 11 | 1 . 9 1 . Worker 1 | . . 1 . . Builder 1 | . . 1 . . Tunneler 1 | . . 1 . . Hauler 2 | . . 2 . . Recycler 1 | . . 1 . . Mechanic 1 | . . 1 . . Operator 1 | . . 1 . . Watcher 3 | . . 3 . . Swarmer 4 | . . . 4 . Grunt 20 | 1 2 11 6 . Sentry 4 | . . 3 1 . Best Kill Streak 9 | 1 2 9 4 . Combat Bots Only 7 | 1 2 7 4 . Max Kills in Single Turn 3 | 1 1 3 2 . Gunslinging . | . . . . . Exploded 1 | . . 1 1 . Melee . | . . . . . Uniques/NPCs Destroyed . | . . . . . Combat | -11 -10 -9 -8 -8 -------- Run | Yrd Mat Mat Mat Sto Hostile Shots Fired 262 | 2 10 88 153 9 Missed 65 | 2 2 23 35 3 Damage Taken 3067 | . 107 983 1808 169 Core 799 | . 12 234 403 150 Absorbed by Shields . | . . . . . Core Remaining (%) 78 | 100 95 41 . . Volleys Fired 104 | 2 7 55 40 . Largest 2 | 2 2 2 2 . Hottest 105 | 80 80 84 105 . Shots Fired 161 | 4 14 85 58 . Gun 115 | 4 14 73 24 . Cannon 39 | . . 5 34 . Launcher 7 | . . 7 . . Special . | . . . . . Kinetic 40 | . . 5 35 . Thermal 68 | 2 7 53 6 . Explosive 7 | . . 7 . . Electromagnetic 46 | 2 7 20 17 . Robot Hit Streak 11 | 1 5 11 11 . Robot Miss Streak 5 | 1 2 5 5 . Penetration Max . | . . . . . Secondary Targets 1 | . 1 . . . Max Gunslinging Chain 1 | . 1 . . . Shots Hit Robots 114 | 2 9 62 41 . Core Hits 70 | 1 5 42 22 . Critical Kills . | . . . . . Critical Parts Destroyed . | . . . . . Critical Strikes 2 | . . 1 1 . Blast 1 | . . . 1 . Corrupt 1 | . . 1 . . Melee Attacks . | . . . . . Impact . | . . . . . Slashing . | . . . . . Piercing . | . . . . . Sneak Attacks . | . . . . . Combat Hostiles . | . . . . . Follow-up Attacks . | . . . . . Damage Inflicted 2448 | 30 107 1367 944 . Guns 1109 | 30 107 608 364 . Cannons 504 | . . 89 415 . Explosions 822 | . . 668 154 . Melee . | . . . . . Ramming 13 | . . 2 11 . Kinetic 495 | . . 89 406 . Thermal 788 | . 54 439 295 . Explosive 631 | . . 631 . . Electromagnetic 521 | 30 53 206 232 . Impact . | . . . . . Slashing . | . . . . . Piercing . | . . . . . Highest Corruption . | . . . . . Average Corruption . | . . . . . Corruption Purged . | . . . . . Corruption Blocked . | . . . . . Overload Shots . | . . . . . Overflow Damage 56 | . . 33 23 . Projectiles 14 | . . . 14 . Explosions 42 | . . 33 9 . Melee . | . . . . . Knockbacks 1 | . . . 1 . Impact . | . . . . . Kinetic 1 | . . . 1 . Secondary . | . . . . . Self-Inflicted Damage 170 | . . 141 29 . Shots 6 | . . 5 1 . Rammed 1 | . . 1 . . Targets Rammed 4 | . . 1 3 . Kicked 3 | . . . 3 . Crushed . | . . . . . Highest Temperature 120 | 36 7 20 120 . Average Temperature 29 | 20 3 8 45 . Received Heat Transfer 1338 | . 60 432 792 54 Siege Activations . | . . . . . Robots Corrupted . | . . . . . Combat Hostiles . | . . . . . Parts Fried 1 | . . 1 . . Impact Corruptions . | . . . . . Robots Melted . | . . . . . Combat Hostiles . | . . . . . Parts Melted . | . . . . . Heat Transferred 1497 | . 125 950 422 . Parts Sabotaged . | . . . . . Parts Stolen . | . . . . . Parts Stripped . | . . . . . Power Chain Reactions 3 | . . 1 2 . Alert | -11 -10 -9 -8 -8 ------- Run | Yrd Mat Mat Mat Sto Peak Influence 416 | 20 66 416 272 33 Initial 99 | . 13 27 99 33 Average 166 | 3 50 248 169 28 Maximum Alert Level 2 | . . 2 1 . Low Security (%) 51 | 100 100 21 48 100 Level 1 40 | . . 59 51 . Level 2 7 | . . 18 . . Level 3 . | . . . . . Level 4 . | . . . . . Level 5 . | . . . . . High Security . | . . . . . Max Security . | . . . . . Squads Dispatched 7 | . 1 3 3 . Investigation 3 | . 1 2 . . Extermination . | . . . . . Reinforcement 2 | . . 1 1 . Assault . | . . . . . Garrison 2 | . . . 2 . Intercept . | . . . . . Searches Triggered . | . . . . . Construction Impeded . | . . . . . Haulers Reinforced . | . . . . . Active Scanning Responses . | . . . . . Cargo Convoy Interrupts . | . . . . . Stealth | -11 -10 -9 -8 -8 --------- Run | Yrd Mat Mat Mat Sto Distress Signals 7 | . . 4 3 . Communications Jammed . | . . . . . Distress Signals . | . . . . . Times Spotted 53 | 1 3 23 23 3 Peak Tracking Total 12 | 1 2 4 12 3 Tactical Retreats 1 | . . . 1 . Traps | -11 -10 -9 -8 -8 ------- Run | Yrd Mat Mat Mat Sto Traps Triggered 2 | . . . . 2 Indirectly . | . . . . . Trap Hack Attempts . | . . . . . Triggered . | . . . . . Disarmed . | . . . . . Reprogrammed . | . . . . . Reused . | . . . . . Traps Extracted . | . . . . . Installed . | . . . . . Triggered . | . . . . . Machines | -11 -10 -9 -8 -8 ---------- Run | Yrd Mat Mat Mat Sto Machines Disabled 1 | . . 1 . . Max in Single Turn 1 | . . 1 . . Machines Repaired . | . . . . . Machines Dismantled . | . . . . . Machines Sabotaged . | . . . . . Overloaded Fab Kills . | . . . . . Hacking | -11 -10 -9 -8 -8 --------- Run | Yrd Mat Mat Mat Sto Machines Accessed 10 | . 3 4 3 . Terminals 7 | . 2 3 2 . Fabricators . | . . . . . Repair Stations 2 | . 1 1 . . Recycling Units . | . . . . . Scanalyzers 1 | . . . 1 . Garrison Access . | . . . . . Total Hacks 29 | . 7 11 11 . Successful 22 | . 5 7 10 . Failed 7 | . 2 4 1 . Catastrophic . | . . . . . Database Lockouts . | . . . . . Manual . | . . . . . Terminals 24 | . 6 9 9 . Fabricators . | . . . . . Repair Stations 3 | . 1 2 . . Recycling Units . | . . . . . Scanalyzers 2 | . . . 2 . Garrison Access . | . . . . . Terminal Hacks 18 | . 4 6 8 . Record 11 | . 2 3 6 . Alert Level 2 | . . 1 1 . Unreport Threat 1 | . . . 1 . Maintenance Status 1 | . 1 . . . Investigation Status 1 | . . 1 . . Recall Investigation 1 | . 1 . . . Zone Layout 1 | . . 1 . . Fabricator Hacks . | . . . . . Repair Station Hacks 2 | . 1 1 . . Scan Component 1 | . 1 . . . Refit 1 | . . 1 . . Recycling Unit Hacks . | . . . . . Scanalyzer 2 | . . . 2 . Insert Component 1 | . . . 1 . Analyze 1 | . . . 1 . Garrison Access Hacks . | . . . . . Unauthorized Hacks . | . . . . . Terminals . | . . . . . Fabricators . | . . . . . Repair Stations . | . . . . . Recycling Units . | . . . . . Scanalyzers . | . . . . . Garrison Access . | . . . . . Data Cores Recovered . | . . . . . Used . | . . . . . Hacking Detections 7 | . 2 3 2 . Full Trace Events 3 | . 1 2 . . Feedback Events . | . . . . . Feedback Blocked . | . . . . . Robot Schematics Acquired . | . . . . . Robots Built . | . . . . . Authchips . | . . . . . Time . | . . . . . Total Robot Build Rating . | . . . . . Part Schematics Acquired 1 | . . . 1 . Parts Built . | . . . . . Authchips . | . . . . . Time . | . . . . . Total Part Build Rating . | . . . . . Parts Repaired . | . . . . . Time . | . . . . . Parts Recycled . | . . . . . Recycled Matter . | . . . . . Retrieved Matter . | . . . . . Retrieved Components . | . . . . . Parts Scanalyzed 1 | . . . 1 . Part Schematics Acquired 1 | . . . 1 . Parts Damaged . | . . . . . Bothacking | -11 -10 -9 -8 -8 ------------ Run | Yrd Mat Mat Mat Sto Used RIF Installer . | . . . . . Robots Hacked . | . . . . . Non-combat . | . . . . . Combat . | . . . . . Robot Hacks Applied . | . . . . . Relay Couplers Released . | . . . . . Fabnet Peak Effective % . | . . . . . Robots Rewired . | . . . . . Allies Hacked . | . . . . . Hacks Repelled . | . . . . . Allies | -11 -10 -9 -8 -8 -------- Run | Yrd Mat Mat Mat Sto Total Allies . | . . . . . Largest Group . | . . . . . Highest-Rated Group . | . . . . . Highest-Rated Ally . | . . . . . Total Orders . | . . . . . Ally Attacks . | . . . . . Total Damage . | . . . . . Kills . | . . . . . Allies Corrupted . | . . . . . Allies Melted . | . . . . . Intel | -11 -10 -9 -8 -8 ------- Run | Yrd Mat Mat Mat Sto Robot Analysis Total . | . . . . . Derelict Logs Recovered . | . . . . . Drone Launches . | . . . . . Drone Recoveries . | . . . . . Exploration | -11 -10 -9 -8 -8 ------------- Run | Yrd Mat Mat Mat Sto Turns Passed 1573 | 80 279 624 532 58 Spaces Moved 831 | 60 173 284 250 64 Core 201 | 17 . 99 21 64 Treads 19 | . . . 19 . Legs 396 | 43 173 7 173 . Wheels . | . . . . . Hover . | . . . . . Flight 215 | . . 178 37 . Fastest Speed 29 | 50 120 29 50 50 Average Speed 131 | 100 120 139 149 81 Slowest Speed 500 | 120 120 450 500 100 Overloaded Moves . | . . . . . Propulsion Burnouts . | . . . . . Robots Hopped 1 | . . 1 . . Cave-ins Triggered . | . . . . . Exploration Rate (%) 22 | 7 32 30 30 14 Regions Visited 4 Branch Regions 1 Pre-discovered Areas . | . . . . . Known Exits Taken . | . . . . . Unknown Exits Taken 4 | 1 1 1 1 . Scrap Searched . | . . . . . Spaces Dug . | . . . . . Terrain Destroyed 63 | . . 56 7 . Melee . | . . . . . Projectile 3 | . . . 3 . AOE 60 | . . 56 4 . Terrain Rammed . | . . . . . Walls Destroyed . | . . . . . Machines Disabled . | . . . . . Actions | -11 -10 -9 -8 -8 --------- Run | Yrd Mat Mat Mat Sto Total 1168 | 76 231 436 355 70 Wait 81 | . 44 22 10 5 Move 825 | 59 172 281 249 64 Hop 1 | . . 1 . . Pick Up 63 | 8 5 30 20 . Fast Attach . | . . . . . Attach 44 | 6 . 23 14 1 Detach 3 | . . 2 1 . Swap 9 | . 1 4 4 . Drop 34 | 1 2 17 14 . Fire 104 | 2 7 55 40 . Melee . | . . . . . Ram 1 | . . 1 . . Kick 3 | . . . 3 . Crush . | . . . . . Escape Stasis . | . . . . . Rewire . | . . . . . Trap . | . . . . . Miscellaneous . | . . . . . Route ------- -11/Scrapyard -10/Materials -9/Materials -8/Materials -8/Storage History --------- Turn | Location | Event 2 | -11/Scrapyard | Met Revision 17 58 | -11/Scrapyard | Discovered new exit (range 8) 81 | -11/Scrapyard | Entered Materials 311 | -10/Materials | Build established: Mutant 342 | -10/Materials | Discovered new exit (range 16) 360 | -10/Materials | Entered another Materials area 360 | -9/Materials | Evolved 2 slots: Power x1, Propulsion x1 552 | -9/Materials | Destroyed 7 combat bots 584 | -9/Materials | Lost 5 parts (1p1n3w) 635 | -9/Materials | Core integrity fell below 50% 666 | -9/Materials | Lost 8 parts (2p2n2u2w) 748 | -9/Materials | Discovered new exit (range 11) 984 | -9/Materials | Entered another Materials area 984 | -8/Materials | Evolved 2 slots: Power x1, Utility x1 1412 | -8/Materials | Garrison activated, responded to threat 1505 | -8/Materials | Discovered new exit (range 11) 1513 | -8/Materials | Core integrity fell below 50% 1516 | -8/Materials | Entered Storage 1544 | -8/Storage | Lost 13 parts (1p4n2u6w) 1564 | -8/Storage | Core integrity fell below 20% 1574 | -8/Storage | Destroyed by G-47 Trooper with Particle Gun Last Messages --------------- A-02 Transporter destroyed. Hpw. Shotgun destroyed. Trap Scanner destroyed. Acquired 46 matter. EXIT=FOUND Imp. Heat Sink destroyed. Hvy. Ion Engine destroyed. Acquired Aluminum Leg. R-06 Scavenger collects Lgt. Treads. Y-45 Defender suffers critical hit (Burn). R-06 Scavenger collects Lgt. Treads. Aluminum Leg destroyed. LOCATION=UNKNOWN GOAL=ESCAPE Triggered Explosive Trap. An explosion rips through the floor. Lrg. Matter Pod destroyed. Triggered Explosive Trap. An explosion rips through the floor. Com. Battery destroyed. Map ----- +----------------------------------------------------+ | ????# # """"?????????????? | | ????# """"?????????????? | | ????# """"?????????????? | | ????# #????????????? | | ????# # #????????????? | | ????# # #????????????? | | ????# ###########????????????? | | ????# #??????????????????????? | | ????# #??????????????????????? | | ???## ##?????????????????????? | | ???# #?????????????????????? | | ????# #?????????????????????? | | ???## #?????????????????????? | | ???# #?????????????????????? | | ???## #?????????????????????? | | ????# ##?????????????????????? | | ????# ##?????????????????????? | | ????# ########+####?????????? | | ????# ????????? | | ????# u ????????? | | ????# ????????? | | ????# ###########?????????? | | ????#### #???????????????????? | | ???????# #???????????????????? | | ???????# #???????????????????? | | ???????#@ #???????????????????? | | ???????# l #???????????????????? | | ???????+ #???????????????????? | | ???????#gg #???????????????????? | | ???????# #???????????????????? | | ???????# ???????????????????? | | ???????#+##+##??????????????????? | | ???????# ? ???????????????????? | | ???????? ??????????????????????? | | ???????? ??????????????????????? | | ???????? ??????????????????????? | | ???????? ??????????????????????? | | ???????? ??????????????????????? | | ???????? ??????????????????????? | | ???????? ??????????????????????? | | ????????????????????????????????? | | ????????????????????????????????? | | ????????????????????????????????? | | ????????????????????????????????? | | ????????????????????????????????? | | ????????????????????????????????? | | ????????????????????????????????? | | ????????????????????????????????? | | ????????????????????????????????? | | ????????????????????????????????? | +----------------------------------------------------+ Best States ------------- Heat Dissipation 60 Coolant Potential 50 Energy Generation 26 Energy Capacity 470 Matter Stores 357 Matter Capacity 450 Sight Range 16 Terrain Scan Density 10 Armor Coverage 225 Evasion (%) 64 Recoil Reduction 1 Item Schematics ----------------- Rocket Launcher | -8/Materials | Scanalyzed Robot Schematics ------------------ None Fabricated ------------ Nothing Alien Tech Used ----------------- None Achievements -------------- GoHome() Librarian Loot Pinata Risk Taker Troublemaker Challenges ------------ None Game ------ Seed CryofiberBiometalHumpback Manual? 0 Play Time 00:21:25 Cumulative 1.3 hours Start 2024.04.01 @ 00:02:12 End 2024.04.01 @ 00:23:15 Sessions 1 Manual Loads 0 Difficulty Rogue Special Mode None Game No. 3 Rogue 3 Adventurer 0 Explorer 0 Win Type - Total 0 Types 0/0/0/0/0/0/0/0/0 Lore% 2 Gallery% 6 Achievement% 6 Wizard Run 0 Options --------- Layout 1 ASCII 0 Keyboard 0 Movement Mouse Keybinds 0 Fullscreen 1 Font 24/Smallcaps Map View 50x35 Zoom Use 0% Tactical HUD 0 Map Filters NONE Filters NONE Steam 1 RUN: 54ced9ce-4fac-4593-9501-518010589c9c